bitfinex/quotes_BTCUSD_20251110
["timestamp","ask_amount","ask_price","bid_price","bid_amount"]
[1762733609756,0.323,104980.0,104970.0,0.28975896]
[1762733609898,0.323,104980.0,104970.0,0.2707059]
[1762733610379,0.67417191,104990.0,104980.0,0.19051247]
[1762733610685,0.67417191,104990.0,104980.0,0.04605367]
[1762733610930,0.69112191,104990.0,104980.0,0.04605367]
[1762733611781,0.6646472,104990.0,104980.0,0.04605367]
[1762733612060,0.20308181,104990.0,104980.0,0.23656614]
[1762733612258,0.00023748,104990.0,104980.0,0.3081686]
[1762733612434,0.00023748,104990.0,104980.0,0.08017528]
[1762733612641,0.20537181,104990.0,104980.0,0.24609655]
[1762733612911,0.20637181,104990.0,104980.0,0.24609655]
[1762733613116,0.00123748,104990.0,104980.0,0.3422732]
[1762733613319,0.00023748,104990.0,104980.0,0.32669901]
[1762733613541,0.19173181,104990.0,104980.0,0.32769901]
[1762733614169,0.19173181,104990.0,104980.0,0.353251]
[1762733614853,0.19173181,104990.0,104980.0,0.09113607]
[1762733615072,0.19173181,104990.0,104980.0,0.28164854]
[1762733615703,0.00123748,104990.0,104980.0,0.28164854]
[1762733615949,0.00123748,104990.0,104980.0,0.353251]
[1762733616830,0.00123748,104990.0,104980.0,0.38088525]
[1762733617455,0.00123748,104990.0,104980.0,0.32975968]
[1762733617655,9.80779,105000.0,104990.0,0.22667661]
[1762733617949,9.80779,105000.0,104990.0,0.30818006]
[1762733618366,9.80802745,105000.0,104990.0,0.30818006]
[1762733618735,9.80802745,105000.0,104990.0,0.25713908]
[1762733619195,9.80902745,105000.0,104990.0,0.25913908]
[1762733619386,9.80902745,105000.0,104990.0,0.3263065]
[1762733619589,9.80802745,105000.0,104990.0,0.3253065]
[1762733619794,9.80802745,105000.0,104990.0,0.3273065]
[1762733620000,9.80802745,105000.0,104990.0,0.3253065]
[1762733620209,9.80802745,105000.0,104990.0,0.25713908]
[1762733620435,9.80802745,105000.0,104990.0,0.59413907]
[1762733620668,9.80802745,105000.0,104990.0,0.66230649]
[1762733620914,9.80802745,105000.0,104990.0,0.66530649]
[1762733621106,9.80902745,105000.0,104990.0,0.3323065]
[1762733621255,9.80902745,105000.0,104990.0,0.26413908]
[1762733621462,9.10802745,105000.0,104990.0,0.3293065]
[1762733621670,8.44437745,105000.0,104990.0,0.29510305]
[1762733622033,8.44537745,105000.0,104990.0,0.31808503]
[1762733622754,8.44537745,105000.0,104990.0,0.64108503]
[1762733622993,8.44537745,105000.0,104990.0,0.65108502]
[1762733625731,8.44537745,105000.0,104990.0,0.26488626]
[1762733626206,8.44537745,105000.0,104990.0,0.30106854]
[1762733630319,8.44537745,105000.0,104990.0,0.26713908]
[1762733630522,8.44537745,105000.0,104990.0,0.73870446]
[1762733630963,8.44537745,105000.0,104990.0,0.27713907]
[1762733631533,8.36820219,105000.0,104990.0,0.73870446]
[1762733632232,8.36820219,105000.0,104990.0,0.33491463]
[1762733632438,8.36820219,105000.0,104990.0,0.34491462]
[1762733632638,8.31674942,105000.0,104990.0,0.34491462]
[1762733632847,8.31674942,105000.0,104990.0,0.33491463]
[1762733633049,8.31674942,105000.0,104990.0,0.28180942]
[1762733633246,8.31674942,105000.0,104990.0,0.2309568]
[1762733633468,8.31674942,105000.0,104990.0,0.65791463]
[1762733635127,8.31674942,105000.0,104990.0,1.11948002]
[1762733635278,7.58510584,105000.0,104990.0,1.07170445]
[1762733635604,7.34517039,105000.0,104990.0,1.07170445]
[1762733635801,7.19617574,105000.0,104990.0,1.1395417]
[1762733635979,6.93291709,105000.0,104990.0,0.67797631]
[1762733636212,6.93291709,105000.0,104990.0,1.1355417]
[1762733636409,6.93191709,105000.0,104990.0,1.1345417]
[1762733636815,6.93291709,105000.0,104990.0,1.1355417]
[1762733636985,6.93291709,105000.0,104990.0,1.1415417]
[1762733637178,6.93191709,105000.0,104990.0,1.06770445]
[1762733637460,6.49726674,105000.0,104990.0,1.06770445]
[1762733637600,6.38316713,105000.0,104990.0,1.14358062]
[1762733637795,6.20653951,105000.0,104990.0,0.68201523]
[1762733638023,6.20653951,105000.0,104990.0,1.14358062]
[1762733639218,6.20653951,105000.0,104990.0,1.07570445]
[1762733639399,5.60113896,105000.0,104990.0,1.07570445]
[1762733639604,5.60113896,105000.0,104990.0,1.07560877]
[1762733640230,5.60065896,105000.0,104990.0,1.07560877]
[1762733640551,5.60065896,105000.0,104990.0,1.22250877]
[1762733640709,5.60065896,105000.0,104990.0,1.33682877]
[1762733641604,5.06013674,105000.0,104990.0,1.33682877]
[1762733641805,5.03972477,105000.0,104990.0,1.33682877]
[1762733642020,5.03972477,105000.0,104990.0,0.4017611]
[1762733642224,5.03972477,105000.0,104990.0,0.78435686]
[1762733642374,5.03972477,105000.0,104990.0,1.07560877]
[1762733643030,5.03972477,105000.0,104990.0,0.95696931]
[1762733643643,4.56139946,105000.0,104990.0,0.95696931]
[1762733643855,3.41760594,105000.0,104990.0,1.1138693]
[1762733643972,3.14553389,105000.0,104990.0,1.41339452]
[1762733644174,1.5711394,105000.0,104990.0,1.62451117]
[1762733644380,1.23152504,105000.0,104990.0,2.32925517]
[1762733644577,1.20295024,105000.0,104990.0,2.32925517]
[1762733644782,1.20295024,105000.0,104990.0,2.44854816]
[1762733644783,1.1589055,105000.0,104990.0,2.44854816]
[1762733644979,1.13033813,105000.0,104990.0,2.44854816]
[1762733645186,0.32366956,105000.0,104990.0,2.47426217]
[1762733645463,0.14375314,105000.0,104990.0,2.47426217]
[1762733645635,0.04164322,105000.0,104990.0,2.44054816]
[1762733645850,0.00047587,105070.0,105050.0,0.19038241]
[1762733646063,0.00047587,105070.0,105060.0,0.07993439]
[1762733646064,0.01777157,105070.0,105060.0,0.07993439]
[1762733646257,0.01777157,105070.0,105060.0,0.10030118]
[1762733646636,0.20812086,105070.0,105060.0,0.10030118]
[1762733646837,0.01777157,105070.0,105060.0,0.10030118]
[1762733647045,0.01825135,105070.0,105060.0,0.10030118]
[1762733647828,0.00047978,105070.0,105060.0,0.42330118]
[1762733648171,0.00047978,105070.0,105060.0,0.59463184]
[1762733648727,0.00047978,105070.0,105060.0,0.59563184]
[1762733648728,0.00547978,105070.0,105060.0,0.59563184]
[1762733649783,0.00547978,105070.0,105060.0,0.63181412]
[1762733650185,0.00547978,105070.0,105060.0,0.58091647]
[1762733651827,0.00547978,105070.0,105060.0,0.59091646]
[1762733652210,0.00714072,105070.0,105060.0,0.58091647]
[1762733652441,0.00714072,105070.0,105060.0,0.59091646]
[1762733652624,0.00714072,105070.0,105060.0,0.99544486]
[1762733652824,0.00714072,105070.0,105060.0,1.01544484]
[1762733653222,0.00714072,105070.0,105060.0,0.67251891]
[1762733653601,0.00714072,105070.0,105060.0,1.01544484]
[1762733654334,0.00028,105080.0,105060.0,1.28230838]
[1762733654534,0.00028,105080.0,105070.0,0.6184924]
[1762733654535,0.00037133,105080.0,105070.0,0.6184924]
[1762733654736,0.00037133,105080.0,105070.0,0.73410427]
[1762733655287,0.00037133,105080.0,105070.0,0.80196781]
[1762733655690,0.00037133,105080.0,105070.0,0.73410427]
[1762733655888,0.00037133,105080.0,105070.0,0.81893369]
[1762733656091,0.00037133,105080.0,105070.0,1.14193369]
[1762733656321,0.0002,105090.0,105080.0,0.21033116]
[1762733656456,0.0002,105090.0,105080.0,0.57362388]
[1762733656662,0.0002,105090.0,105080.0,0.6584533]
[1762733656871,0.0002,105090.0,105080.0,0.10519621]
[1762733657055,0.0002,105090.0,105080.0,0.61108704]
[1762733657494,0.0002,105090.0,105080.0,0.42075587]
[1762733657908,0.0012,105090.0,105080.0,0.64726932]
[1762733658514,0.0012,105090.0,105080.0,0.45693815]
[1762733658968,0.0012,105090.0,105080.0,0.38954907]
[1762733659193,0.19151306,105090.0,105080.0,0.09775587]
[1762733659452,0.54959899,105090.0,105080.0,0.11465058]
[1762733659677,0.61844054,105090.0,105080.0,0.0456569]
[1762733659899,1.59661547,105090.0,105080.0,0.02036679]
[1762733660192,1.25368954,105090.0,105080.0,0.02036679]
[1762733660441,0.19034929,105070.0,105060.0,0.0690053]
[1762733660659,0.53327522,105070.0,105060.0,0.06948428]
[1762733661779,0.53827522,105070.0,105060.0,0.06948428]
[1762733661992,0.53827522,105070.0,105060.0,0.05948428]
[1762733662226,0.62229175,105070.0,105060.0,0.00047898]
[1762733662472,0.62181588,105070.0,105060.0,0.00047898]
[1762733662664,0.62229175,105070.0,105060.0,0.00047898]
[1762733662813,0.62181588,105070.0,105060.0,0.00047898]
[1762733662989,0.62229175,105070.0,105060.0,0.00047898]
[1762733663592,0.59275175,105070.0,105060.0,0.00047898]
[1762733664241,0.59275175,105070.0,105060.0,0.02576909]
[1762733664922,0.62229175,105070.0,105060.0,0.02576909]
[1762733665335,1.69936375,105070.0,105060.0,0.00047898]
[1762733665536,1.69888788,105070.0,105060.0,0.00047898]
[1762733665737,1.60121175,105070.0,105060.0,0.00047898]
[1762733666051,0.94529175,105070.0,105060.0,0.00047898]
[1762733666640,0.94029175,105070.0,105060.0,0.00047898]
[1762733666843,0.94729175,105070.0,105060.0,0.00147898]
[1762733667451,0.94029175,105070.0,105060.0,0.00047898]
[1762733667683,0.94929175,105070.0,105060.0,0.00147898]
[1762733668301,1.54031175,105070.0,105060.0,0.00147898]
[1762733668934,1.56190792,105070.0,105060.0,0.00147898]
[1762733669230,1.53983588,105070.0,105060.0,0.00147898]
[1762733669433,0.19040365,105040.0,105030.0,0.02529011]
[1762733669631,0.19040365,105040.0,105030.0,0.02576977]
[1762733669632,0.58860624,105040.0,105030.0,0.02576977]
[1762733669845,0.71460624,105040.0,105030.0,0.02576977]
[1762733669979,0.71460624,105040.0,105030.0,0.00047966]
[1762733669980,0.63856624,105040.0,105030.0,0.00047966]
[1762733670580,0.63956624,105040.0,105030.0,0.00047966]
[1762733670995,0.24668031,105040.0,105030.0,0.00047966]
[1762733671370,0.58960624,105040.0,105030.0,0.00047966]
[1762733671574,0.55250624,105040.0,105030.0,0.00047966]
[1762733672133,0.60246624,105040.0,105030.0,0.00047966]
[1762733673098,0.55250624,105040.0,105030.0,0.00047966]
[1762733674291,0.53480558,105040.0,105030.0,0.00047966]
[1762733674495,0.34440193,105040.0,105030.0,0.00047966]
[1762733674714,0.001476,105040.0,105030.0,0.05481194]
[1762733674918,0.001,105040.0,105030.0,0.24523372]
[1762733675125,0.001,105040.0,105030.0,0.22619155]
[1762733675932,0.001,105040.0,105030.0,0.25990674]
[1762733676262,0.001,105040.0,105030.0,0.28518523]
[1762733676452,0.001,105040.0,105030.0,0.32136751]
[1762733677146,0.00047596,105050.0,105040.0,0.20991329]
[1762733677345,0.55843031,105070.0,105040.0,0.2352813]
[1762733677603,0.55843031,105070.0,105050.0,0.01439624]
[1762733677803,0.60489579,105060.0,105040.0,0.06391801]
[1762733678079,0.4150043,105060.0,105040.0,0.25432144]
[1762733678475,0.4150043,105060.0,105040.0,0.25432062]
[1762733678681,0.34340184,105060.0,105040.0,0.25432062]
[1762733678939,0.00047591,105060.0,105050.0,0.24479209]
[1762733679091,0.34363893,105080.0,105060.0,0.19036631]
[1762733679295,0.53397125,105080.0,105060.0,0.02536801]
[1762733679497,0.53397125,105080.0,105060.0,0.03536801]
[1762733679697,0.34363893,105080.0,105060.0,0.2257354]
[1762733679900,0.5339711,105080.0,105060.0,0.03536801]
[1762733680150,0.53397174,105080.0,105060.0,0.03536801]
[1762733680470,0.00223718,105080.0,105060.0,0.24476851]
[1762733680656,0.53549621,105080.0,105060.0,0.03536801]
[1762733680954,0.53597203,105080.0,105060.0,0.05440475]
[1762733681796,0.34563893,105080.0,105060.0,0.27848463]
[1762733682010,0.34563893,105080.0,105060.0,0.25944789]
[1762733682806,0.002713,105080.0,105070.0,0.20938421]
[1762733682986,0.00223718,105080.0,105070.0,0.21938421]
[1762733683359,0.34516311,105080.0,105070.0,0.20034929]
[1762733683533,0.00223718,105080.0,105070.0,0.20034929]
[1762733683737,0.00023718,105080.0,105070.0,0.01]
[1762733683945,0.00023718,105080.0,105070.0,0.02951458]
[1762733684157,0.00023718,105080.0,105070.0,0.21986387]
[1762733684401,0.00023718,105080.0,105070.0,0.00547966]
[1762733684598,0.00023718,105080.0,105070.0,0.25491215]
[1762733685449,0.00023718,105080.0,105070.0,0.06456286]
[1762733685646,0.00423718,105080.0,105070.0,0.08459778]
[1762733685990,0.00023718,105080.0,105070.0,0.08359778]
[1762733686421,0.00223718,105080.0,105070.0,0.24857906]
[1762733686646,0.00223718,105080.0,105070.0,0.22954414]
[1762733687060,0.00223718,105080.0,105070.0,0.03919485]
[1762733687295,0.00223718,105080.0,105070.0,0.08360087]
[1762733687467,0.00223718,105080.0,105070.0,0.05822977]
[1762733687896,0.65511674,105080.0,105070.0,0.05957719]
[1762733688580,0.002713,105080.0,105070.0,0.05957719]
[1762733688779,0.53549428,105080.0,105070.0,0.05957719]
[1762733688956,0.5359701,105080.0,105070.0,0.05957719]
[1762733689346,0.53549428,105080.0,105070.0,0.05957719]
[1762733689568,0.53549428,105080.0,105070.0,0.025862]
[1762733689866,0.5359701,105080.0,105070.0,0.025862]
[1762733690035,0.5839901,105080.0,105070.0,0.025862]
[1762733690460,0.5359701,105080.0,105070.0,0.025862]
[1762733691058,0.19256835,105080.0,105070.0,0.025862]
[1762733691306,0.34563893,105080.0,105070.0,0.025862]
[1762733691451,0.5359701,105080.0,105070.0,0.025862]
[1762733691647,0.34563893,105080.0,105070.0,0.025862]
[1762733692096,0.34563893,105080.0,105070.0,0.05957719]
[1762733692292,0.34516311,105080.0,105070.0,0.05957719]
[1762733692500,0.53549428,105080.0,105070.0,0.025862]
[1762733692657,0.5359701,105080.0,105070.0,0.025862]
[1762733693066,0.002713,105080.0,105070.0,0.025862]
[1762733693269,0.34516311,105080.0,105070.0,0.025862]
[1762733693574,0.5359701,105080.0,105070.0,0.025862]
[1762733694223,0.5359701,105080.0,105070.0,0.00047966]
[1762733694752,0.65236428,105080.0,105070.0,0.00047966]
[1762733695078,0.46250893,105080.0,105070.0,0.00047966]
[1762733695278,0.5839901,105080.0,105070.0,0.00047966]
[1762733695541,0.34563893,105080.0,105070.0,0.00047966]
[1762733695761,0.5359701,105080.0,105070.0,0.00047966]
[1762733696347,0.5359701,105080.0,105070.0,0.025862]
[1762733696761,0.5359701,105080.0,105070.0,0.00047966]
[1762733696969,0.34563893,105080.0,105070.0,0.00047966]
[1762733697174,0.34563893,105080.0,105070.0,0.025862]
[1762733697532,0.34563893,105080.0,105070.0,0.035862]
[1762733698352,0.5359701,105080.0,105070.0,0.01047966]
[1762733699698,0.34563893,105080.0,105070.0,0.01047966]
[1762733700104,0.34563893,105080.0,105070.0,0.035862]
[1762733700333,0.53549428,105080.0,105070.0,0.035862]
[1762733700533,0.5359701,105080.0,105070.0,0.035862]
[1762733700701,0.34563893,105080.0,105070.0,0.035862]
[1762733701355,0.5359701,105080.0,105070.0,0.035862]
[1762733701515,0.34563893,105080.0,105070.0,0.035862]
[1762733702723,0.002713,105080.0,105070.0,0.24524621]
[1762733702976,0.00223718,105080.0,105070.0,0.25992648]
[1762733703377,0.00223718,105080.0,105070.0,0.28511274]
[1762733703957,0.00223718,105080.0,105070.0,0.25139755]
[1762733704591,0.00223718,105080.0,105070.0,0.61057983]
[1762733704794,0.00223718,105080.0,105070.0,0.62740031]
[1762733704995,0.00223718,105080.0,105070.0,0.43705102]
[1762733705567,0.70105089,105080.0,105070.0,0.06786874]
[1762733705742,0.46290972,105080.0,105070.0,0.08534301]
[1762733706093,0.00223718,105080.0,105070.0,0.08534301]
[1762733706440,0.65324089,105080.0,105070.0,0.05139767]
[1762733706681,0.70105089,105080.0,105070.0,0.0853559]
[1762733707087,0.46290972,105080.0,105070.0,0.0853559]
[1762733707243,0.00223718,105080.0,105070.0,0.24174696]
[1762733707856,0.00223718,105080.0,105070.0,0.25174696]
[1762733708063,0.00223718,105080.0,105070.0,0.26821803]
[1762733709587,0.00223718,105080.0,105070.0,0.62740031]
[1762733709822,0.0002,105090.0,105070.0,0.62740031]
[1762733709823,0.0002,105090.0,105080.0,0.51333117]
[1762733710054,0.0002,105090.0,105080.0,0.64437433]
[1762733710494,0.00043714,105090.0,105080.0,0.64437433]
[1762733711238,0.00043714,105090.0,105080.0,0.55951345]
[1762733711391,0.00143714,105090.0,105080.0,0.64937433]
[1762733711597,0.00143714,105090.0,105080.0,0.56451345]
[1762733711823,0.00143714,105090.0,105080.0,0.37418228]
[1762733712090,0.00143714,105090.0,105080.0,0.08280808]
[1762733712421,0.65242274,105090.0,105080.0,0.06587101]
[1762733712617,0.68789274,105090.0,105080.0,0.06587101]
[1762733712819,0.80718274,105090.0,105080.0,0.08978727]
[1762733713100,0.94875457,105090.0,105080.0,0.005]
[1762733713299,0.94775457,105090.0,105080.0,0.001]
[1762733713446,0.19033117,105080.0,105070.0,0.05984306]
[1762733713645,0.79417565,105080.0,105070.0,0.05984306]
[1762733714487,0.77089199,105080.0,105070.0,0.05984306]
[1762733715068,0.77289199,105080.0,105070.0,0.05984306]
[1762733715265,0.77289199,105080.0,105070.0,0.0259268]
[1762733716153,0.77589199,105080.0,105070.0,0.05984306]
[1762733716571,0.70428953,105080.0,105070.0,0.05984306]
[1762733716781,0.46614836,105080.0,105070.0,0.05984306]
[1762733717190,0.005,105080.0,105070.0,0.03439592]
[1762733717600,0.005,105080.0,105070.0,0.23474521]
[1762733717802,0.005,105080.0,105070.0,0.04439592]
[1762733718010,0.19533117,105080.0,105070.0,0.03439592]
[1762733718405,0.19333117,105080.0,105070.0,0.03439592]
[1762733718609,0.19433117,105080.0,105070.0,0.03439592]
[1762733718833,0.65200371,105080.0,105070.0,0.03439592]
[1762733719014,0.65200371,105080.0,105070.0,0.0598478]
[1762733719191,0.70081371,105080.0,105070.0,0.0598478]
[1762733719618,0.65300371,105080.0,105070.0,0.0598478]
[1762733720421,0.65300371,105080.0,105070.0,0.03439592]
[1762733720636,0.65300371,105080.0,105070.0,0.05983913]
[1762733721085,0.65300371,105080.0,105070.0,0.03439592]
[1762733721506,0.65300371,105080.0,105070.0,0.05983918]
[1762733721714,0.77229371,105080.0,105070.0,0.05983918]
[1762733721915,0.77229371,105080.0,105070.0,0.02592292]
[1762733721916,0.96360571,105080.0,105070.0,0.02592292]
[1762733722123,1.31036519,105080.0,105070.0,0.02592292]
[1762733722330,1.32816721,105080.0,105070.0,0.00047966]
[1762733722521,1.3552191,105080.0,105070.0,0.00047966]
[1762733722869,1.3542191,105080.0,105070.0,0.00047966]
[1762733723088,1.3572191,105080.0,105070.0,0.00047966]
[1762733723514,1.86918758,105080.0,105070.0,0.00047966]
[1762733723718,0.19038553,105050.0,105040.0,0.02544326]
[1762733723891,0.80594053,105050.0,105040.0,0.02592304]
[1762733724100,0.80594053,105050.0,105040.0,0.00047978]
[1762733724101,1.8363369,105050.0,105040.0,0.00047978]
[1762733724307,1.85412404,105050.0,105040.0,0.00047978]
[1762733724533,1.83084052,105050.0,105040.0,0.00047978]
[1762733724729,0.24544326,105060.0,105040.0,0.02592304]
[1762733724730,0.22631377,105060.0,105040.0,0.02592304]
[1762733724929,0.22585553,105050.0,105040.0,0.02592304]
[1762733725145,0.03647,105050.0,105040.0,0.02592304]
[1762733725341,0.87842053,105050.0,105040.0,0.00047978]
[1762733725890,0.88442053,105050.0,105040.0,0.00147978]
[1762733726090,1.32447053,105050.0,105040.0,0.00147978]
[1762733726301,1.35999053,105050.0,105040.0,0.00047978]
[1762733726508,1.36599053,105050.0,105040.0,0.00047978]
[1762733726677,1.36646649,105050.0,105040.0,0.00047978]
[1762733726912,1.36246649,105050.0,105040.0,0.00047978]
[1762733727113,1.36446649,105050.0,105040.0,0.00047978]
[1762733727674,1.36399053,105050.0,105040.0,0.00047978]
[1762733727865,1.36446649,105050.0,105040.0,0.00047978]
[1762733728679,1.36246649,105050.0,105040.0,0.00047978]
[1762733728886,1.36746649,105050.0,105040.0,0.00147978]
[1762733729129,1.36546649,105050.0,105040.0,0.00147978]
[1762733729267,1.32294649,105050.0,105040.0,0.00147978]
[1762733729476,1.36846649,105050.0,105040.0,0.00147978]
[1762733729884,0.90779395,105050.0,105040.0,0.00147978]
[1762733730122,1.36799053,105050.0,105040.0,0.00147978]
[1762733730322,1.43170066,105050.0,105040.0,0.00147978]
[1762733730525,1.40464877,105050.0,105040.0,0.00147978]
[1762733730984,1.40417281,105050.0,105040.0,0.00147978]
[1762733731211,1.44895985,105050.0,105040.0,0.00147978]
[1762733731434,1.47319529,105050.0,105040.0,0.00147978]
[1762733732046,1.42238392,105050.0,105040.0,0.00147978]
[1762733733100,1.42190796,105050.0,105040.0,0.00147978]
[1762733733307,1.43207563,105050.0,105040.0,0.00147978]
[1762733733952,1.45912752,105050.0,105040.0,0.00147978]
[1762733734153,1.45912752,105050.0,104990.0,0.05935952]
[1762733734154,0.19047046,105010.0,104990.0,0.07889834]
[1762733734333,0.651143,105010.0,104990.0,0.03592339]
[1762733734539,0.682063,105010.0,104990.0,0.03592339]
[1762733734927,0.46067254,105000.0,104990.0,0.03592339]
[1762733735154,0.74660914,105010.0,104990.0,0.03592339]
[1762733735462,0.19047619,105000.0,104990.0,0.04092339]
[1762733735900,0.19047619,105000.0,104990.0,0.03092339]
[1762733736106,0.19047619,105000.0,104990.0,0.03392339]
[1762733736312,0.23302619,105000.0,104990.0,0.00548013]
[1762733736722,0.82937119,105000.0,104990.0,0.00848013]
[1762733736940,0.82937119,105000.0,104990.0,0.00348013]
[1762733737350,0.83037119,105000.0,104990.0,0.00948013]
[1762733737579,0.83037119,105000.0,104990.0,0.00648013]
[1762733737781,0.82984738,105000.0,104990.0,0.00048013]
[1762733738197,0.04355,105000.0,104990.0,0.00448013]
[1762733738384,0.001,105000.0,104990.0,0.00448013]
[1762733738603,0.001,105000.0,104990.0,0.20497446]
[1762733738782,0.575825,105000.0,104990.0,0.01448013]
[1762733738989,0.83084738,105000.0,104990.0,0.00648013]
[1762733739137,0.83084738,105000.0,104990.0,0.19697446]
[1762733739138,0.001,105000.0,104990.0,0.19697446]
[1762733740194,0.001,105000.0,104990.0,0.03192339]
[1762733740396,0.19147619,105000.0,104990.0,0.03192339]
[1762733740600,0.001,105000.0,104990.0,0.22241772]
[1762733740800,0.001,105000.0,104990.0,0.03180939]
[1762733741011,0.001,105000.0,104990.0,0.05085882]
[1762733742311,0.001,105000.0,104990.0,0.03180939]
[1762733742826,0.19147619,105000.0,104990.0,0.03180939]
[1762733743032,0.76630119,105000.0,104990.0,0.03180939]
[1762733743907,0.46167254,105000.0,104990.0,0.03180939]
[1762733744271,0.001,105000.0,104990.0,0.22230372]
[1762733744474,0.001,105000.0,104990.0,0.03180939]
[1762733744677,0.19147619,105000.0,104990.0,0.03434588]
[1762733745427,0.19147619,105000.0,104990.0,0.06826214]
[1762733745428,0.001,105000.0,104990.0,0.06826214]
[1762733745642,0.19147619,105000.0,104990.0,0.06826214]
[1762733746043,0.001,105000.0,104990.0,0.06826214]
[1762733746642,0.19147619,105000.0,104990.0,0.06826214]
[1762733747181,0.001,105000.0,104990.0,0.06826214]
[1762733747397,0.001,105000.0,104990.0,0.04293288]
[1762733747842,0.19147619,105000.0,104990.0,0.04293288]
[1762733748041,0.001,105000.0,104990.0,0.04293288]
[1762733748515,0.001,105000.0,104990.0,0.09380389]
[1762733748746,0.19147619,105000.0,104990.0,0.09380389]
[1762733748933,0.69370873,105000.0,104990.0,0.04293288]
[1762733749131,0.82846738,105000.0,104990.0,0.06832905]
[1762733749750,0.82746738,105000.0,104990.0,0.06232905]
[1762733749905,0.82746738,105000.0,104990.0,0.02841279]
[1762733750109,0.001,105000.0,104990.0,0.04898605]
[1762733750311,0.001,105000.0,104990.0,0.30833103]
[1762733750575,0.001,105000.0,104990.0,0.25536534]
[1762733751307,0.001,105000.0,104990.0,0.27230241]
[1762733751746,0.001,105000.0,104990.0,0.63148469]
[1762733751899,0.001,105000.0,104990.0,0.56367661]
[1762733752080,0.001,105000.0,104990.0,0.64853749]
[1762733752734,0.66109205,105030.0,105010.0,0.20045216]
[1762733752880,0.21820588,105030.0,105020.0,0.08484088]
[1762733753081,0.24718983,105030.0,105020.0,0.08484088]
[1762733753288,0.31879229,105030.0,105020.0,0.08484088]
[1762733753496,0.82102483,105030.0,105020.0,0.08484088]
[1762733753736,0.82102483,105030.0,105020.0,0.03393635]
[1762733753933,0.82402483,105030.0,105020.0,0.03493635]
[1762733754864,0.82602483,105030.0,105020.0,0.03493635]
[1762733755240,0.75442237,105030.0,105020.0,0.08584088]
[1762733755436,0.22272983,105030.0,105020.0,0.05190453]
[1762733755642,0.68340237,105030.0,105020.0,0.05190453]
[1762733756063,0.68340237,105030.0,105020.0,0.06190453]
[1762733756064,0.02278637,105030.0,105020.0,0.06190453]
[1762733756369,0.02278637,105030.0,105020.0,0.011]
[1762733756716,0.02278637,105030.0,105020.0,0.26831262]
[1762733756717,0.002,105030.0,105020.0,0.26831262]
[1762733757123,0.004,105030.0,105020.0,0.26831262]
[1762733757374,0.002,105030.0,105020.0,0.28530079]
[1762733758172,0.002,105030.0,105020.0,0.28630079]
[1762733758382,0.6905133,105050.0,105030.0,0.01]
[1762733758597,0.70830745,105050.0,105040.0,0.08483365]
[1762733758830,0.70783149,105050.0,105040.0,0.08483365]
[1762733759413,0.74603149,105050.0,105040.0,0.08483365]
[1762733759574,0.74603149,105050.0,105040.0,0.08531426]
[1762733760158,0.74803149,105050.0,105040.0,0.08531426]
[1762733760370,0.48046669,105050.0,105040.0,0.08531426]
[1762733760571,0.003,105050.0,105040.0,0.25178445]
[1762733760788,0.003,105050.0,105040.0,0.25875118]
[1762733761022,0.003,105050.0,105040.0,0.26875118]
[1762733761241,0.00244096,105050.0,105040.0,0.20088426]
[1762733761443,0.00244096,105050.0,105040.0,0.268631]
[1762733761897,0.66111312,105080.0,105060.0,0.19036542]
[1762733762092,0.47891709,105080.0,105070.0,0.03386595]
[1762733762296,0.66877244,105080.0,105060.0,0.2850303]
[1762733762504,0.66877244,105080.0,105060.0,0.09466488]
[1762733762505,0.33135142,105070.0,105060.0,0.09466488]
[1762733762716,0.19062896,105070.0,105060.0,0.03386595]
[1762733762875,0.00027967,105070.0,105060.0,0.08466488]
[1762733763077,0.00027967,105070.0,105060.0,0.28744202]
[1762733763275,0.00027967,105070.0,105060.0,0.04486595]
[1762733763507,0.00027967,105070.0,105060.0,0.09466488]
[1762733763747,0.00027967,105070.0,105060.0,0.25216633]
[1762733763876,0.00027967,105070.0,105060.0,0.25316633]
[1762733764229,0.00027967,105070.0,105060.0,0.25216633]
[1762733764402,0.00027967,105070.0,105060.0,0.28694623]
[1762733764822,0.00027967,105070.0,105060.0,0.09657883]
[1762733765020,0.53329171,105070.0,105060.0,0.09657883]
[1762733765217,0.00027967,105070.0,105060.0,0.30598297]
[1762733765537,0.00027967,105070.0,105060.0,0.28694623]
[1762733765916,0.00027967,105070.0,105060.0,0.28594623]
[1762733766239,0.00027967,105070.0,105060.0,0.06179893]
[1762733766461,0.00127967,105070.0,105060.0,0.11757249]
[1762733766589,0.00127967,105070.0,105060.0,0.30793989]
[1762733766976,0.00127967,105070.0,105060.0,0.10053575]
[1762733767150,0.00127967,105070.0,105060.0,0.04973682]
[1762733767385,0.53429171,105070.0,105060.0,0.04973682]
[1762733767591,0.60341171,105070.0,105060.0,0.03973682]
[1762733767724,0.60341171,105070.0,105060.0,0.006]
[1762733768131,0.66393171,105070.0,105060.0,0.006]
[1762733769866,1.50513471,105070.0,105060.0,0.006]
[1762733770042,1.49016571,105070.0,105060.0,0.004]
[1762733770240,1.28447058,105070.0,105060.0,0.004]
[1762733770440,0.60341171,105070.0,105060.0,0.004]
[1762733770642,0.19162896,105070.0,105060.0,0.004]
[1762733770974,0.00127967,105070.0,105050.0,0.20038296]
[1762733771119,0.00127967,105070.0,105060.0,0.1903674]
[1762733771332,0.00127967,105070.0,105060.0,0.001]
[1762733771741,0.53429171,105070.0,105050.0,0.04373682]
[1762733771973,0.53429171,105070.0,105050.0,0.21942401]
[1762733772198,0.53303015,105060.0,105050.0,0.03203855]
[1762733772450,0.1903674,105060.0,105050.0,0.013]
[1762733773510,0.1903674,105060.0,105050.0,0.015]
[1762733773988,0.1903674,105060.0,105050.0,0.03103855]
[1762733774170,0.1903674,105060.0,105050.0,0.012]
[1762733774369,0.1913674,105060.0,105050.0,0.016]
[1762733774852,0.1913674,105060.0,105050.0,0.03503855]
[1762733775060,0.1913674,105060.0,105050.0,0.016]
[1762733775450,0.1913674,105060.0,105050.0,0.01572033]
[1762733775656,0.53403015,105060.0,105050.0,0.01572033]
[1762733776664,0.34366275,105060.0,105050.0,0.01572033]
[1762733776866,0.53403015,105060.0,105050.0,0.01572033]
[1762733777438,0.53403015,105060.0,105050.0,0.006]
[1762733777777,0.001,105060.0,105050.0,0.23012235]
[1762733778105,0.001,105060.0,105050.0,0.24012235]
[1762733778532,0.001,105060.0,105050.0,0.29092128]
[1762733779342,0.001,105060.0,105050.0,0.25718446]
[1762733779898,0.001,105060.0,105050.0,0.59711744]
[1762733780277,0.001,105060.0,105050.0,0.59511744]
[1762733780479,0.34266275,105080.0,105060.0,0.1903498]
[1762733780651,0.20085837,105090.0,105060.0,0.1903498]
[1762733780652,0.19075058,105090.0,105070.0,0.24982991]
[1762733780821,0.53341364,105090.0,105070.0,0.23414967]
[1762733781021,0.53341364,105090.0,105080.0,0.01903311]
[1762733781261,0.53341364,105090.0,105080.0,0.05283349]